bitfinex/quotes_BTCUSD_20240819
["timestamp","ask_amount","ask_price","bid_price","bid_amount"]
[1724080456377,0.23621556,58715.0,58714.0,0.18240928]
[1724080456999,0.23621556,58715.0,58714.0,0.01209228]
[1724080457208,0.15964878,58715.0,58714.0,0.01209228]
[1724080457771,0.15964878,58715.0,58714.0,0.18240928]
[1724080458229,0.32996278,58715.0,58714.0,0.01209228]
[1724080458400,0.15964878,58715.0,58714.0,0.01209228]
[1724080459007,0.96956323,58715.0,58714.0,0.01209228]
[1724080459144,1.18287773,58715.0,58714.0,0.01209228]
[1724080459372,1.18287866,58715.0,58714.0,0.01209228]
[1724080459573,1.18063393,58715.0,58714.0,0.01209228]
[1724080460022,1.05306052,58715.0,58714.0,0.00309228]
[1724080460232,1.18063358,58715.0,58714.0,0.00309228]
[1724080460478,1.18763358,58715.0,58714.0,0.00309228]
[1724080460900,0.84700558,58715.0,58714.0,0.00309228]
[1724080461486,0.71943252,58715.0,58714.0,0.00309228]
[1724080461940,1.06006052,58715.0,58714.0,0.00309228]
[1724080462168,0.37776975,58715.0,58714.0,0.00309228]
[1724080462570,0.47978908,58715.0,58714.0,0.00309228]
[1724080463957,0.46375937,58715.0,58714.0,0.00309228]
[1724080464122,0.47978927,58715.0,58714.0,0.00309228]
[1724080464744,0.47978927,58715.0,58714.0,0.17340928]
[1724080465548,0.47978927,58715.0,58714.0,1.67340928]
[1724080466005,0.47978927,58715.0,58714.0,1.50309228]
[1724080467129,0.65010327,58715.0,58714.0,1.50309228]
[1724080467342,1.50270804,58715.0,58714.0,0.00309228]
[1724080467540,1.64875607,58715.0,58714.0,0.00309228]
[1724080468198,1.54673674,58715.0,58714.0,0.00309228]
[1724080469025,1.54673694,58715.0,58714.0,0.00309228]
[1724080469446,1.64872272,58715.0,58714.0,0.00309228]
[1724080469647,1.54673694,58715.0,58714.0,0.00309228]
[1724080469853,1.67431,58715.0,58714.0,0.00309228]
[1724080470059,1.52826197,58715.0,58714.0,0.00309228]
[1724080470854,1.52826208,58715.0,58714.0,0.00309228]
[1724080471107,1.18763408,58715.0,58714.0,0.00309228]
[1724080471498,1.18763426,58715.0,58714.0,0.00309228]
[1724080471833,1.52826226,58715.0,58714.0,0.00309228]
[1724080472036,1.61574123,58715.0,58714.0,0.00309228]
[1724080473027,1.61507895,58715.0,58714.0,0.00309228]
[1724080473635,1.61511474,58715.0,58714.0,0.00309228]
[1724080474184,1.48762583,58715.0,58714.0,0.00309228]
[1724080475498,1.48762602,58715.0,58714.0,0.00309228]
[1724080476125,1.47159544,58715.0,58714.0,0.00309228]
[1724080476312,1.48762602,58715.0,58714.0,0.00309228]
[1724080476937,1.82825402,58715.0,58714.0,0.00309228]
[1724080477054,1.95126155,58715.0,58714.0,0.00309228]
[1724080477483,2.04453602,58715.0,58714.0,0.00309228]
[1724080477685,2.43020224,58715.0,58714.0,0.00309228]
[1724080477897,1.001485,58714.0,58713.0,0.00048089]
[1724080478102,2.71667858,58714.0,58713.0,0.00048089]
[1724080478308,2.71467858,58714.0,58713.0,0.00048089]
[1724080478532,2.71582707,58714.0,58713.0,0.00048089]
[1724080478733,2.71782707,58714.0,58713.0,0.00048089]
[1724080479151,2.71582707,58714.0,58713.0,0.00048089]
[1724080479600,2.71583057,58714.0,58713.0,0.00048089]
[1724080479781,2.71383057,58714.0,58713.0,0.00048089]
[1724080480207,2.71283057,58714.0,58713.0,0.00048089]
[1724080480393,2.71383057,58714.0,58713.0,0.00048089]
[1724080480596,2.71283057,58714.0,58713.0,0.00048089]
[1724080480752,2.72326609,58714.0,58713.0,0.00148089]
[1724080480953,2.72426609,58714.0,58713.0,0.00148089]
[1724080481157,2.74026609,58714.0,58713.0,0.00148089]
[1724080482265,3.25122609,58714.0,58713.0,0.00148089]
[1724080482463,3.25186344,58714.0,58713.0,0.00148089]
[1724080482666,3.25386344,58714.0,58713.0,0.00148089]
[1724080483074,3.24986344,58714.0,58713.0,0.00148089]
[1724080483530,3.23382936,58714.0,58713.0,0.00148089]
[1724080483737,3.24986345,58714.0,58713.0,0.00148089]
[1724080484143,3.25186345,58714.0,58713.0,0.00148089]
[1724080484432,3.25186346,58714.0,58713.0,0.00148089]
[1724080484541,3.25386346,58714.0,58713.0,0.00148089]
[1724080484751,3.24986346,58714.0,58713.0,0.00148089]
[1724080485132,3.42393361,58714.0,58713.0,0.00148089]
[1724080485468,3.42593361,58714.0,58713.0,0.00420946]
[1724080486070,3.25386346,58714.0,58713.0,0.00420946]
[1724080487247,3.24703068,58714.0,58713.0,0.00420946]
[1724080487904,3.24703068,58714.0,58711.0,0.00052533]
[1724080487905,0.005,58712.0,58711.0,0.00052533]
[1724080488093,0.005,58712.0,58710.0,2.0]
[1724080488094,0.948276,58711.0,58710.0,2.0]
[1724080488271,3.29212381,58711.0,58710.0,2.0]
[1724080488472,3.31512381,58711.0,58710.0,2.0]
[1724080488698,3.49851008,58711.0,58710.0,2.0]
[1724080488876,3.50251008,58711.0,58710.0,2.0]
[1724080489278,3.51255484,58711.0,58710.0,2.0]
[1724080489499,3.52655484,58711.0,58710.0,2.0]
[1724080489960,3.69850297,58711.0,58710.0,2.0]
[1724080490164,3.52255484,58711.0,58710.0,2.0]
[1724080490601,3.52655484,58711.0,58710.0,2.0]
[1724080490774,3.35516131,58711.0,58710.0,2.0]
[1724080491572,3.35704255,58711.0,58710.0,2.0]
[1724080491972,3.35604255,58711.0,58710.0,2.0]
[1724080492195,2.73836757,58711.0,58710.0,2.0]
[1724080492531,2.79809204,58711.0,58710.0,2.0]
[1724080492647,2.96944081,58711.0,58710.0,2.0]
[1724080493058,2.95544081,58711.0,58710.0,2.0]
[1724080493272,2.95844081,58711.0,58710.0,2.0]
[1724080493466,3.19345028,58711.0,58710.0,2.0]
[1724080494185,3.53410128,58711.0,58710.0,2.0]
[1724080495022,3.52010128,58711.0,58710.0,2.0]
[1724080495277,3.50406378,58711.0,58710.0,2.0]
[1724080495488,3.52009932,58711.0,58710.0,2.0]
[1724080495662,3.53409932,58711.0,58710.0,2.0]
[1724080496321,3.7060336,58711.0,58710.0,2.0]
[1724080496530,3.70603464,58711.0,58710.0,2.0]
[1724080497885,3.53410036,58711.0,58710.0,2.0]
[1724080498715,3.53010036,58711.0,58710.0,2.0]
[1724080498915,3.18944936,58711.0,58710.0,2.0]
[1724080499121,3.18844936,58711.0,58710.0,2.0]
[1724080499533,2.52540059,58711.0,58710.0,2.0]
[1724080499733,2.24666665,58711.0,58710.0,2.0]
[1724080500349,1.16111365,58711.0,58710.0,2.0]
[1724080500564,0.8325764,58711.0,58710.0,2.0769]
[1724080500956,0.93334436,58711.0,58710.0,2.0795866]
[1724080501899,1.24599536,58711.0,58710.0,2.0795866]
[1724080502352,1.25299536,58711.0,58710.0,2.0795866]
[1724080502556,1.38038241,58711.0,58710.0,2.0795866]
[1724080502756,1.37338241,58711.0,58710.0,2.0795866]
[1724080503119,1.38738241,58711.0,58710.0,2.0804886]
[1724080503513,1.43849071,58711.0,58710.0,2.0804886]
[1724080503748,1.09783971,58711.0,58710.0,2.0804886]
[1724080503946,0.91790268,58711.0,58710.0,2.0804886]
[1724080504145,0.86679438,58711.0,58710.0,2.0804886]
[1724080504351,0.53199658,58711.0,58710.0,2.2508166]
[1724080504591,0.58297068,58711.0,58710.0,2.5914736]
[1724080504803,0.58297068,58711.0,58710.0,2.2508166]
[1724080504988,0.60846164,58711.0,58710.0,2.0804886]
[1724080505180,0.74124991,58711.0,58710.0,2.0804886]
[1724080505383,1.18313716,58711.0,58710.0,2.0804886]
[1724080505584,1.04500887,58711.0,58710.0,2.0035886]
[1724080505798,1.89765964,58711.0,58710.0,2.0035886]
[1724080505953,1.77022568,58711.0,58710.0,2.0035886]
[1724080506159,1.94157445,58711.0,58710.0,2.0035886]
[1724080506372,1.94157445,58711.0,58710.0,2.000902]
[1724080506575,1.94157445,58711.0,58710.0,2.00357005]
[1724080507581,1.92553787,58711.0,58710.0,2.00357005]
[1724080507778,1.94157007,58711.0,58710.0,2.00357005]
[1724080507978,2.00486825,58711.0,58710.0,2.00357005]
[1724080508206,2.77633663,58711.0,58710.0,2.00357005]
[1724080508409,3.01874739,58711.0,58710.0,2.00357005]
[1724080509100,3.01974739,58711.0,58710.0,2.00357005]
[1724080509300,3.08074739,58711.0,58710.0,2.00357005]
[1724080509706,3.24078324,58711.0,58710.0,2.00357005]
[1724080509949,3.06874739,58711.0,58710.0,2.00357005]
[1724080510159,3.09074739,58711.0,58710.0,2.00357005]
[1724080510421,3.26378324,58711.0,58710.0,2.00357005]
[1724080510652,3.26278324,58711.0,58710.0,2.00357005]
[1724080510856,2.54829862,58711.0,58710.0,2.00357005]
[1724080511063,2.54830027,58711.0,58710.0,2.00357005]
[1724080511273,2.52530027,58711.0,58710.0,2.00357005]
[1724080511484,1.16321913,58711.0,58710.0,2.08197005]
[1724080511696,1.50387013,58711.0,58710.0,2.08197005]
[1724080511901,1.44057195,58711.0,58710.0,2.08197005]
[1724080512766,1.61192072,58711.0,58710.0,2.08197005]
[1724080512971,1.67348093,58711.0,58710.0,2.08197005]
[1724080513405,0.88402531,58711.0,58710.0,2.14747005]
[1724080513616,0.88403071,58711.0,58710.0,2.31779805]
[1724080514076,0.75650475,58711.0,58710.0,2.31779805]
[1724080514306,0.86210352,58711.0,58710.0,2.14747005]
[1724080514522,1.50060548,58711.0,58710.0,2.08197005]
[1724080514727,1.43637618,58711.0,58710.0,2.08197005]
[1724080514934,1.37307952,58711.0,58710.0,2.08197005]
[1724080515195,0.86210352,58711.0,58710.0,2.08197005]
[1724080515391,0.85852985,58711.0,58710.0,2.59295505]
[1724080515600,0.54899385,58711.0,58710.0,2.59295505]
[1724080515812,0.62551608,58711.0,58710.0,2.59295505]
[1724080516017,0.60000762,58711.0,58710.0,2.08197005]
[1724080516224,0.53899385,58711.0,58710.0,2.08197005]
[1724080516450,0.52781385,58711.0,58710.0,2.08197005]
[1724080516657,0.74851977,58711.0,58710.0,2.08197005]
[1724080516867,0.74251977,58711.0,58710.0,2.08197005]
[1724080517081,0.53181385,58711.0,58710.0,2.25229805]
[1724080517289,0.53181385,58711.0,58710.0,2.65945505]
[1724080517493,0.58282778,58711.0,58710.0,2.65945505]
[1724080517916,0.57882778,58711.0,58710.0,2.65945505]
[1724080518122,0.57882778,58711.0,58710.0,2.66045505]
[1724080518334,0.52781385,58711.0,58710.0,2.66045505]
[1724080518535,0.52781385,58711.0,58710.0,3.00111205]
[1724080518536,0.57882778,58711.0,58710.0,3.00111205]
[1724080518741,0.52781385,58711.0,58710.0,3.00111205]
[1724080518948,0.52781385,58711.0,58710.0,4.50111205]
[1724080519332,0.51178,58711.0,58710.0,3.00111205]
[1724080519766,0.52780898,58711.0,58710.0,3.00111205]
[1724080519958,0.52780898,58711.0,58710.0,3.81979805]
[1724080520163,0.52780898,58711.0,58710.0,4.16045505]
[1724080520590,0.52780931,58711.0,58710.0,4.16045505]
[1724080521001,0.52780931,58711.0,58710.0,2.66045505]
[1724080521216,0.52780931,58711.0,58710.0,3.00111205]
[1724080521433,0.51178,58711.0,58710.0,3.00111205]
[1724080521673,0.51178,58711.0,58710.0,4.50111205]
[1724080521877,0.51178,58711.0,58710.0,3.00111205]
[1724080522097,0.51178,58711.0,58710.0,3.34176905]
[1724080522306,0.51178,58711.0,58710.0,3.35207951]
[1724080522516,0.51178,58711.0,58710.0,3.69273651]
[1724080522743,0.51178,58711.0,58710.0,3.86408528]
[1724080522947,0.51178,58711.0,58710.0,3.8670429]
[1724080523160,0.51178,58711.0,58710.0,3.9670429]
[1724080523363,0.51178,58711.0,58710.0,3.9680429]
[1724080523566,0.51278,58711.0,58710.0,3.9680429]
[1724080524002,0.51178,58711.0,58710.0,3.96308528]
[1724080524414,0.51278,58711.0,58710.0,5.12342828]
[1724080524636,0.51378,58711.0,58710.0,5.12542828]
[1724080525048,0.51378,58711.0,58710.0,5.46608528]
[1724080525255,0.51278,58711.0,58710.0,5.12342828]
[1724080525665,0.51378,58711.0,58710.0,4.95507951]
[1724080525876,0.51378,58711.0,58710.0,3.00411205]
[1724080526282,0.51478,58711.0,58710.0,3.00511205]
[1724080526494,0.51478,58711.0,58710.0,2.25729805]
[1724080526700,0.52881041,58711.0,58710.0,2.25529805]
[1724080526905,0.52980989,58711.0,58710.0,2.59695505]
[1724080527113,0.52880989,58711.0,58710.0,2.25329805]
[1724080527316,0.52880989,58711.0,58710.0,2.25229805]
[1724080527524,0.53080989,58711.0,58710.0,2.25529805]
[1724080528004,0.52880989,58711.0,58710.0,2.25229805]
[1724080528465,0.77530344,58711.0,58710.0,2.00557005]
[1724080528663,1.18055444,58711.0,58710.0,2.00557005]
[1724080528866,1.35190321,58711.0,58710.0,2.00557005]
[1724080529096,0.76575866,58711.0,58710.0,2.00557005]
[1724080529311,0.70215866,58711.0,58710.0,2.00657005]
[1724080529516,0.52880989,58711.0,58710.0,2.31689805]
[1724080529725,0.52880989,58711.0,58710.0,2.65755505]
[1724080529936,0.53280989,58711.0,58710.0,2.31689805]
[1724080530149,0.52880989,58711.0,58710.0,2.59355505]
[1724080530346,0.52780989,58711.0,58710.0,2.59155505]
[1724080530768,0.53580989,58711.0,58710.0,2.59155505]
[1724080531172,0.52780989,58711.0,58710.0,2.59155505]
[1724080531577,0.52780989,58711.0,58710.0,2.59255505]
[1724080531791,0.52780989,58711.0,58710.0,2.25189805]
[1724080531989,0.52780989,58711.0,58710.0,2.59255505]
[1724080533158,0.52780989,58711.0,58710.0,2.25189805]
[1724080533357,0.52780989,58711.0,58710.0,2.59255505]
[1724080533947,0.52780989,58711.0,58710.0,2.51555505]
[1724080534961,0.52780989,58711.0,58710.0,2.93561205]
[1724080535387,0.52780966,58711.0,58710.0,2.93561205]
[1724080535860,0.51178,58711.0,58710.0,2.93561205]
[1724080536050,0.51178,58711.0,58710.0,3.34036905]
[1724080536051,0.52780951,58711.0,58710.0,3.34036905]
[1724080536229,0.51178,58711.0,58710.0,3.34036905]
[1724080536433,0.51178,58711.0,58710.0,3.68102605]
[1724080536682,0.51178,58711.0,58710.0,3.34036905]
[1724080537101,0.51178,58711.0,58710.0,3.33936905]
[1724080537308,0.51178,58711.0,58710.0,3.34036905]
[1724080537883,0.51178,58711.0,58710.0,3.33936905]
[1724080538116,0.51278,58711.0,58710.0,3.34136905]
[1724080538838,0.51378,58711.0,58710.0,3.34236905]
[1724080539392,0.51378,58711.0,58710.0,4.84236905]
[1724080541799,0.52980886,58711.0,58710.0,2.00657005]
[1724080542000,0.93338263,58711.0,58710.0,2.00657005]
[1724080542204,1.27403363,58711.0,58710.0,2.00657005]
[1724080542335,2.34085688,58711.0,58710.0,2.00657005]
[1724080542535,2.41035156,58711.0,58710.0,2.00657005]
[1724080542907,2.53231664,58711.0,58710.0,2.00457005]
[1724080543143,2.46805656,58711.0,58710.0,2.00357005]
[1724080543315,2.53133928,58711.0,58710.0,2.00357005]
[1724080543521,2.41435156,58711.0,58710.0,2.00357005]
[1724080543734,2.47407273,58711.0,58710.0,2.00357005]
[1724080543865,2.5373567,58711.0,58710.0,2.00357005]
[1724080544280,2.48263553,58711.0,58710.0,2.00357005]
[1724080545347,2.69513855,58711.0,58710.0,2.00357005]
[1724080545577,2.91456648,58711.0,58710.0,2.00357005]
[1724080545800,2.63541667,58711.0,58710.0,2.00357005]
[1724080546251,2.76182403,58711.0,58710.0,2.00357005]
[1724080547268,2.74579517,58711.0,58710.0,2.00357005]
[1724080547511,3.23048031,58711.0,58710.0,2.00357005]
[1724080547734,3.23048147,58711.0,58710.0,2.00357005]
[1724080548236,3.57113247,58711.0,58710.0,2.00357005]
[1724080548440,3.54542364,58711.0,58710.0,2.00357005]
[1724080548906,3.55442364,58711.0,58710.0,2.00357005]
[1724080549142,3.55442364,58711.0,58710.0,0.56934039]
[1724080549143,3.56941769,58711.0,58710.0,0.56934039]
[1724080549420,3.58341769,58711.0,58710.0,0.56934039]
[1724080549667,3.56941769,58711.0,58710.0,0.56667234]
[1724080549895,3.22876669,58711.0,58710.0,0.56667234]
[1724080550123,3.05741792,58711.0,58710.0,0.56667234]
[1724080551420,3.04138251,58711.0,58710.0,0.56667234]
[1724080551652,2.71276833,58711.0,58710.0,0.56667234]
[1724080551911,2.72676833,58711.0,58710.0,0.56667234]
[1724080552170,2.72676833,58711.0,58710.0,0.569377]
[1724080552171,2.8881171,58711.0,58710.0,0.569377]
[1724080552389,2.8741171,58711.0,58710.0,0.56667234]
[1724080552634,2.8881171,58711.0,58710.0,0.56667234]
[1724080552879,2.9021171,58711.0,58710.0,0.56667234]
[1724080553099,2.8881171,58711.0,58710.0,0.56667234]
[1724080553427,3.2147681,58711.0,58710.0,0.49854034]
[1724080553670,3.2287681,58711.0,58710.0,0.22601234]
[1724080554142,3.25300891,58711.0,58710.0,0.22601234]
[1724080554389,3.2427681,58711.0,58710.0,0.22601234]
[1724080554597,3.2427681,58711.0,58710.0,0.15788034]
[1724080554822,3.57965991,58711.0,58710.0,0.05568234]
[1724080555281,3.5936601,58711.0,58710.0,0.05568234]
[1724080555505,3.56003263,58711.0,58710.0,3.4e-07]
[1724080555721,3.88733451,58711.0,58710.0,3.4e-07]
[1724080555941,3.56068351,58711.0,58710.0,3.4e-07]
[1724080556161,3.57468351,58711.0,58710.0,3.4e-07]
[1724080556593,3.22876924,58711.0,58710.0,3.4e-07]
[1724080556808,2.88811824,58711.0,58710.0,3.4e-07]
[1724080557025,2.90211824,58711.0,58710.0,3.4e-07]
[1724080557452,2.90154318,58711.0,58710.0,3.4e-07]
[1724080558270,3.24219418,58711.0,58710.0,3.4e-07]
[1724080558690,2.89754318,58711.0,58710.0,3.4e-07]
[1724080558949,2.90778329,58711.0,58710.0,3.4e-07]
[1724080559166,2.90978329,58711.0,58710.0,3.4e-07]
[1724080559513,2.89954318,58711.0,58710.0,3.4e-07]
[1724080559773,2.89374647,58711.0,58710.0,3.4e-07]
[1724080559934,2.90154252,58711.0,58710.0,3.4e-07]
[1724080560140,2.89754252,58711.0,58710.0,3.4e-07]
[1724080560346,3.02469145,58711.0,58710.0,3.4e-07]
[1724080560548,2.89754252,58711.0,58710.0,3.4e-07]
[1724080560755,2.99924791,58711.0,58710.0,3.4e-07]
[1724080560957,2.90272334,58711.0,58710.0,3.4e-07]
[1724080561165,2.88872334,58711.0,58710.0,3.4e-07]
[1724080561648,2.90272334,58711.0,58710.0,3.4e-07]
[1724080561865,2.99242828,58711.0,58710.0,3.4e-07]
[1724080562065,2.87672131,58711.0,58710.0,3.4e-07]
[1724080562357,2.89072131,58711.0,58710.0,3.4e-07]
[1724080562555,2.90672131,58711.0,58710.0,3.4e-07]
[1724080562970,2.89272131,58711.0,58710.0,3.4e-07]
[1724080563148,2.90672131,58711.0,58710.0,3.4e-07]
[1724080563381,3.24737231,58711.0,58710.0,3.4e-07]
[1724080563632,3.31063278,58711.0,58710.0,3.4e-07]
[1724080563859,3.24737231,58711.0,58710.0,3.4e-07]
[1724080564306,3.3106339,58711.0,58710.0,3.4e-07]
[1724080564515,1.681683,58709.0,58708.0,0.00902]
[1724080564727,2.87517608,58709.0,58708.0,1e-06]
[1724080564940,1.34116,58702.0,58701.0,0.0009031]
[1724080565163,3.53218775,58702.0,58701.0,0.0009031]
[1724080565574,3.79782124,58702.0,58701.0,0.0009031]
[1724080566492,3.9604688,58702.0,58701.0,0.0009031]
[1724080566909,3.55634758,58702.0,58701.0,0.0009031]
[1724080567115,3.70883531,58702.0,58701.0,0.0009031]
[1724080567380,3.82177824,58702.0,58701.0,0.0009031]
[1724080567585,3.70880937,58702.0,58701.0,0.0009031]
[1724080568627,3.82182843,58702.0,58701.0,0.0009031]
[1724080568839,3.83582843,58702.0,58701.0,0.0009031]
[1724080569481,3.82182843,58702.0,58701.0,0.0009031]
[1724080569909,2.92464458,58702.0,58701.0,0.0009031]
[1724080570374,2.27576982,58702.0,58701.0,0.0009031]
[1724080570537,2.33678242,58702.0,58701.0,0.0009031]
[1724080570664,2.2097085,58702.0,58701.0,0.0009031]
[1724080570866,2.33678118,58702.0,58701.0,0.0009031]
[1724080571070,2.23411012,58702.0,58701.0,0.0009031]
[1724080571285,2.51853157,58702.0,58701.0,0.0009031]
[1724080571482,2.50453157,58702.0,58701.0,0.0009031]
[1724080571684,2.06118185,58702.0,58701.0,0.0009031]
[1724080571865,1.59649185,58702.0,58701.0,0.0627031]
[1724080572079,1.62432565,58702.0,58701.0,0.0627031]
[1724080572267,1.61032565,58702.0,58701.0,0.0627031]
[1724080572544,1.74484062,58702.0,58701.0,0.0627031]
[1724080572747,0.72173485,58702.0,58701.0,0.0627031]
[1724080572950,1.57349185,58702.0,58701.0,0.1385031]
[1724080573267,1.25702811,58702.0,58701.0,0.1385031]
[1724080573467,1.23278885,58702.0,58701.0,0.1385031]
[1724080573643,1.22339814,58702.0,58701.0,0.1385031]
[1724080573859,1.23278388,58702.0,58701.0,0.1385031]
[1724080574062,1.39623915,58702.0,58701.0,0.1385031]
[1724080574267,1.23278388,58702.0,58701.0,0.1385031]
[1724080574469,1.22878388,58702.0,58701.0,0.1385031]
[1724080574673,0.70772988,58702.0,58701.0,0.1385031]
[1724080574872,0.71872988,58702.0,58701.0,0.1385031]
[1724080575054,0.73596887,58702.0,58701.0,0.65230328]
[1724080575258,0.55438111,58702.0,58701.0,0.99301228]
[1724080575460,0.55438111,58702.0,58701.0,0.65230328]
[1724080576177,0.54338111,58702.0,58701.0,0.65230328]
[1724080576383,0.54938111,58702.0,58701.0,0.65230328]
[1724080577158,0.54938111,58702.0,58701.0,0.99301228]
[1724080577799,0.54937721,58702.0,58701.0,0.99301228]
[1724080578605,0.53334444,58702.0,58701.0,1.33372128]
[1724080579260,0.53334444,58702.0,58701.0,2.83372128]
[1724080579685,0.52734444,58702.0,58701.0,2.49301228]
[1724080580091,0.54537672,58702.0,58701.0,2.49301228]
[1724080580267,0.52934444,58702.0,58701.0,2.49301228]
[1724080580921,0.54537702,58702.0,58701.0,0.99301228]
[1724080581125,0.53837702,58702.0,58701.0,0.14124028]
[1724080581329,0.70972579,58702.0,58701.0,0.14124028]
[1724080581590,1.00615327,58702.0,58701.0,0.14124028]
[1724080581784,1.00615327,58702.0,58701.0,0.00364028]
[1724080581785,1.34685778,58702.0,58701.0,0.00364028]
[1724080581986,1.68756158,58702.0,58701.0,0.00364028]
[1724080582207,1.37228935,58702.0,58701.0,0.0009031]
[1724080582409,1.39771072,58702.0,58701.0,0.0009031]
[1724080582617,1.39771072,58702.0,58701.0,0.00361306]
[1724080582820,0.83580662,58702.0,58701.0,0.1443031]
[1724080583023,0.88408114,58702.0,58701.0,0.14701306]
[1724080583429,0.93493124,58702.0,58701.0,0.14701306]
[1724080583558,1.10628001,58702.0,58701.0,0.14701306]
[1724080584160,1.44698301,58702.0,58701.0,0.14701306]
[1724080584365,1.81311107,58702.0,58701.0,0.06731306]
[1724080584569,1.81311107,58702.0,58701.0,0.00361306]
[1724080584771,1.73683591,58702.0,58701.0,0.0009031]
[1724080585203,2.03977648,58702.0,58701.0,0.0009031]
[1724080585813,1.94831529,58702.0,58701.0,0.0009031]
[1724080586207,2.07544056,58702.0,58701.0,0.0009031]
[1724080586407,1.05233479,58702.0,58701.0,0.1712571]
[1724080586638,0.91641155,58702.0,58701.0,0.0783031]
[1724080586833,0.79016574,58702.0,58701.0,0.0783031]
[1724080587007,0.79016574,58702.0,58701.0,0.08089689]
[1724080587208,0.71373007,58702.0,58701.0,0.14349689]
[1724080587961,0.5423813,58702.0,58701.0,0.14349689]
[1724080588299,0.84761334,58702.0,58701.0,0.31385089]
[1724080589365,1.55549467,58702.0,58701.0,0.06609689]
[1724080589620,1.42810188,58702.0,58701.0,0.06609689]
[1724080589803,1.40268058,58702.0,58701.0,0.0635031]
[1724080590150,1.76880469,58702.0,58701.0,0.0635031]
[1724080590293,1.94015346,58702.0,58701.0,0.0009031]
[1724080590483,2.02643702,58702.0,58701.0,0.0009031]
[1724080590700,2.52001137,58702.0,58701.0,0.0009031]
[1724080590897,2.7947434,58702.0,58701.0,0.0009031]
[1724080591132,2.7927434,58702.0,58701.0,0.0009031]
[1724080591333,2.79776493,58702.0,58701.0,0.0009031]
[1724080591536,2.80547495,58702.0,58701.0,0.0009031]
[1724080591738,2.81947495,58702.0,58701.0,0.0009031]
[1724080592576,2.72921638,58702.0,58701.0,0.0009031]
[1724080593394,3.47857322,58702.0,58701.0,0.0009031]
[1724080593713,3.47857322,58702.0,58697.0,0.009009]
[1724080593714,1.263044,58698.0,58697.0,0.009009]
[1724080593844,3.04682345,58698.0,58697.0,0.009009]
[1724080594053,3.21897242,58698.0,58697.0,0.009009]
[1724080594627,3.04682814,58698.0,58697.0,0.009009]
[1724080595037,3.07482814,58698.0,58697.0,0.009009]
[1724080595241,3.23217691,58698.0,58697.0,0.009009]
[1724080595625,3.24617691,58698.0,58697.0,0.009009]
[1724080595829,3.07282814,58698.0,58697.0,0.009009]
[1724080596068,3.2469502,58698.0,58697.0,0.009009]
[1724080596267,3.08514103,58698.0,58697.0,0.009009]
[1724080596466,3.08114103,58698.0,58697.0,0.009009]
[1724080596706,3.00532814,58698.0,58697.0,0.009009]
[1724080596912,3.16267691,58698.0,58697.0,0.009009]
[1724080597223,3.17667691,58698.0,58697.0,0.009009]
[1724080597932,3.17667858,58698.0,58697.0,0.009009]
[1724080598269,3.18067858,58698.0,58697.0,0.009009]
[1724080599883,3.17667858,58698.0,58697.0,0.009009]
[1724080600366,2.70403957,58698.0,58697.0,0.009009]
[1724080600605,3.17057401,58698.0,58697.0,0.009009]
[1724080601275,3.17157401,58698.0,58697.0,0.009009]
[1724080601505,3.17057401,58698.0,58697.0,0.009009]
[1724080601742,2.24037124,58698.0,58697.0,0.009009]
[1724080602227,2.58109824,58698.0,58697.0,0.009009]
[1724080603691,2.01264361,58697.0,58696.0,0.00038078]
[1724080604189,2.35337561,58697.0,58696.0,0.00038078]
[1724080604522,2.34398775,58697.0,58696.0,0.00038078]
[1724080604757,2.36737519,58697.0,58696.0,0.00038078]
[1724080604996,2.38137519,58697.0,58696.0,0.00038078]
[1724080605233,2.31700422,58697.0,58696.0,0.00038078]
[1724080605509,2.38032246,58697.0,58696.0,0.00038078]
[1724080606048,2.36428285,58697.0,58696.0,0.00038078]
[1724080606272,2.38132161,58697.0,58696.0,0.00038078]
[1724080606522,2.96201717,58697.0,58696.0,0.00038078]
[1724080606762,2.8324866,58697.0,58696.0,0.00038078]
[1724080606996,2.8344866,58697.0,58696.0,0.00038078]
[1724080607235,3.2772186,58697.0,58696.0,0.00038078]
[1724080608181,3.2732186,58697.0,58696.0,0.00038078]
[1724080609728,3.2752186,58697.0,58696.0,0.00038078]
[1724080610214,3.2452186,58697.0,58696.0,0.00038078]
[1724080610449,2.8404866,58697.0,58696.0,0.00038078]
[1724080610659,2.55573783,58697.0,58696.0,0.00038078]
[1724080610865,2.52773783,58697.0,58696.0,0.00038078]
[1724080611289,2.55573783,58697.0,58696.0,0.00038078]
[1724080611494,2.2859732,58697.0,58696.0,0.00038078]
[1724080611915,2.3089732,58697.0,58696.0,0.00038078]
[1724080612146,2.48114297,58697.0,58696.0,0.00038078]
[1724080612355,2.48214297,58697.0,58696.0,0.00038078]
[1724080612559,2.75123209,58697.0,58696.0,0.00038078]
[1724080612979,2.75123287,58697.0,58696.0,0.00038078]
[1724080613395,2.63407606,58697.0,58696.0,0.00038078]
[1724080613601,0.99423298,58697.0,58695.0,0.1794]
[1724080613817,0.81307584,58697.0,58696.0,0.0966]
[1724080614035,1.18519324,58697.0,58696.0,0.0966]
[1724080614242,1.43375191,58697.0,58696.0,0.09926482]
[1724080614468,1.31961857,58697.0,58696.0,0.0966]
[1724080614674,1.24588492,58697.0,58696.0,0.0966]
[1724080614882,1.08950169,58697.0,58696.0,0.0966]
[1724080615096,1.44423369,58697.0,58696.0,0.09926482]
[1724080615303,1.43023369,58697.0,58696.0,0.09926482]
[1724080615507,1.69706307,58697.0,58696.0,0.0966]
[1724080615720,1.69706359,58697.0,58696.0,0.0966]
[1724080615943,1.57401762,58697.0,58696.0,0.0966]
[1724080616156,1.41723421,58697.0,58696.0,0.0966]
[1724080616368,1.47696828,58697.0,58696.0,0.0966]
[1724080616574,1.49355328,58697.0,58696.0,0.0966]
[1724080616793,1.56728735,58697.0,58696.0,0.0966]
[1724080617200,1.90801935,58697.0,58696.0,0.0966]
[1724080617419,2.07936812,58697.0,58696.0,0.0966]
[1724080617623,0.851845,58696.0,58695.0,0.0828]
[1724080617868,1.82047928,58696.0,58695.0,0.0828]
[1724080618495,1.28215906,58696.0,58695.0,0.0828]
[1724080618699,1.64810412,58696.0,58695.0,0.0828]
[1724080619400,1.6226799,58696.0,58695.0,0.0828]
[1724080619606,0.511116,58695.0,58694.0,0.00902]
[1724080619863,1.99349065,58695.0,58694.0,0.00902]
[1724080620068,2.50558342,58695.0,58694.0,0.00902]
[1724080620270,2.77379044,58695.0,58694.0,0.00902]
[1724080620479,2.35260245,58695.0,58694.0,0.00902]
[1724080620896,3.04212536,58695.0,58694.0,0.00902]
[1724080621109,3.25972536,58695.0,58694.0,0.00902]
[1724080621317,3.26272536,58695.0,58694.0,0.00902]
[1724080621525,3.43481877,58695.0,58694.0,0.00902]
[1724080621736,3.44521902,58695.0,58694.0,0.00902]
[1724080622566,1.829424,58692.0,58691.0,5.683e-05]
[1724080622778,3.45478838,58692.0,58691.0,5.683e-05]
[1724080623236,3.28265501,58692.0,58691.0,5.683e-05]
[1724080623417,3.36455501,58692.0,58691.0,5.683e-05]